lending/lending_fUSD_20260124
["ID","MTS","AMOUNT","RATE_DAILY","PERIOD"]
[403194319,1769263842613,-500.0,0.00013862,2]
[403194320,1769263842622,-778.0,0.00013862,2]
[403194321,1769263842632,-500.0,0.00013881,2]
[403194322,1769263842642,-1012.28,0.00013881,2]
[403194323,1769263842651,-500.0,0.00013917,2]
[403194324,1769263842661,-778.0,0.00013917,2]
[403194325,1769263842670,-334.98771886,0.00013972,2]
[403194326,1769263842679,-778.0,0.00013972,2]
[403194327,1769263842689,-195.46833955,0.00014019,2]
[403194328,1769263842700,-778.0,0.00014027,2]
[403194329,1769263842709,-9712.15874444,0.00014031,2]
[403194330,1769263842719,-500.0,0.00014045,2]
[403194331,1769263842730,-500.0,0.00014045,2]
[403194332,1769263842739,-6255.26212639,0.00014073,2]
[403194333,1769263842755,-778.0,0.00014082,2]
[403194334,1769263842776,-500.0,0.00014083,2]
[403194335,1769263842796,-500.0,0.00014083,2]
[403194336,1769263842815,-326.49485469,0.00014105,2]
[403194337,1769263842828,-778.0,0.00014136,2]
[403194338,1769263842839,-1012.28,0.00014155,2]
[403194339,1769263842851,-778.0,0.00014191,2]
[403194340,1769263842863,-1000.0,0.00014196,2]
[403194341,1769263842877,-778.0,0.00014246,2]
[403194342,1769263842889,-778.0,0.00014301,2]
[403194343,1769263842900,-778.0,0.00014356,2]
[403194344,1769263842913,-365.11234133,0.00014365,2]
[403194345,1769263842923,-174.88782971,0.00014365,2]
[403194346,1769263842934,-778.0,0.0001441,2]
[403194347,1769263842947,-571.40373526,0.00014422,2]
[403194348,1769263842958,-16197.82,0.00014423,2]
[403194349,1769263842968,-1012.28,0.00014429,2]
[403194350,1769263842979,-322.6107,0.00014432,2]
[403194351,1769263842993,-174.61919141,0.00014432,2]
[403194352,1769263843002,-721.12765535,0.00014432,2]
[403194353,1769263843012,-250.0,0.00014432,2]
[403194354,1769263843023,-250.0,0.00014432,2]
[403194355,1769263843035,-250.0,0.00014432,2]
[403194356,1769263843049,-500.0,0.00014432,2]
[403194357,1769263843059,-250.0,0.00014432,2]
[403194358,1769263843070,-500.0,0.00014432,2]
[403194359,1769263843079,-250.0,0.00014432,2]
[403194360,1769263843088,-500.0,0.00014432,2]
[403194361,1769263843098,-250.0,0.00014432,2]
[403194362,1769263843107,-500.0,0.00014432,2]
[403194363,1769263843119,-250.0,0.00014432,2]
[403194364,1769263843130,-9000.0,0.00014432,2]
[403194365,1769263843139,-500.0,0.00014432,2]
[403194366,1769263843149,-250.0,0.00014432,2]
[403194367,1769263843158,-500.0,0.00014432,2]
[403194368,1769263843168,-500.0,0.00014432,2]
[403194369,1769263843178,-578.20924308,0.00014432,2]
[403194370,1769263843187,-500.0,0.00014432,2]
[403194371,1769263843196,-500.0,0.00014432,2]
[403194373,1769263843206,-288.31990463,0.00014432,2]
[403194374,1769263843215,-6403.27410895,0.00014432,2]
[403194375,1769263843224,-500.0,0.00014432,2]
[403194376,1769263843235,-9552.16786547,0.00014432,2]
[403194377,1769263843245,-500.0,0.00014432,2]
[403194378,1769263843254,-854.2589148,0.00014432,2]
[403194379,1769263843263,-743.50770149,0.00014432,2]
[403194380,1769263843272,-151.0,0.00014432,2]
[403194381,1769263843283,-500.0,0.00014432,2]
[403194382,1769263843295,-500.0,0.00014432,2]
[403194383,1769263843304,-500.0,0.00014432,2]
[403194384,1769263843313,-500.0,0.00014432,2]
[403194385,1769263843323,-500.0,0.00014432,2]
[403194386,1769263843333,-500.0,0.00014432,2]
[403194387,1769263843343,-250.0,0.00014432,2]
[403194388,1769263843352,-500.0,0.00014432,2]
[403194390,1769263843362,-250.0,0.00014432,2]
[403194392,1769263843371,-500.0,0.00014432,2]
[403194393,1769263843380,-250.0,0.00014432,2]
[403194394,1769263843389,-500.0,0.00014432,2]
[403194395,1769263843399,-250.0,0.00014432,2]
[403194396,1769263843408,-500.0,0.00014432,2]
[403194397,1769263843417,-250.0,0.00014432,2]
[403194398,1769263843427,-500.0,0.00014432,2]
[403194400,1769263843436,-250.0,0.00014432,2]
[403194401,1769263843445,-250.0,0.00014432,2]
[403194402,1769263843455,-250.0,0.00014432,2]
[403194403,1769263843464,-500.0,0.00014432,2]
[403194404,1769263843473,-250.0,0.00014432,2]
[403194405,1769263843483,-250.0,0.00014432,2]
[403194406,1769263843493,-250.0,0.00014432,2]
[403194407,1769263843502,-500.0,0.00014432,2]
[403194408,1769263843512,-250.0,0.00014432,2]
[403194409,1769263843521,-500.0,0.00014432,2]
[403194410,1769263843531,-250.0,0.00014432,2]
[403194411,1769263843540,-250.0,0.00014432,2]
[403194412,1769263843550,-172.48891574,0.00014432,2]
[403194413,1769263843560,-250.0,0.00014432,2]
[403194414,1769263843569,-500.0,0.00014432,2]
[403194415,1769263843578,-250.0,0.00014432,2]
[403194416,1769263843587,-500.0,0.00014432,2]
[403194417,1769263843597,-250.0,0.00014432,2]
[403194418,1769263843606,-500.0,0.00014432,2]
[403194419,1769263843616,-250.0,0.00014432,2]
[403194420,1769263843625,-250.0,0.00014432,2]
[403194421,1769263843635,-500.0,0.00014432,2]
[403194422,1769263843644,-250.0,0.00014432,2]
[403194423,1769263843653,-250.0,0.00014432,2]
[403194424,1769263843663,-500.0,0.00014432,2]
[403194425,1769263843672,-250.0,0.00014432,2]
[403194426,1769263843681,-250.0,0.00014432,2]
[403194427,1769263843690,-500.0,0.00014432,2]
[403194428,1769263843700,-250.0,0.00014432,2]
[403194429,1769263843709,-250.0,0.00014432,2]
[403194430,1769263843719,-500.0,0.00014432,2]
[403194431,1769263843728,-250.0,0.00014432,2]
[403194432,1769263843737,-250.0,0.00014432,2]
[403194433,1769263843752,-500.0,0.00014432,2]
[403194434,1769263843766,-276.40674304,0.00014432,2]
[403194435,1769263843775,-151.0,0.00014432,2]
[403194436,1769263843784,-151.0,0.00014432,2]
[403194438,1769263843794,-151.0,0.00014432,2]
[403194439,1769263843803,-151.0,0.00014432,2]
[403194440,1769263843812,-151.0,0.00014432,2]
[403194441,1769263843821,-151.0,0.00014432,2]
[403194442,1769263843830,-151.0,0.00014432,2]
[403194443,1769263843840,-151.0,0.00014432,2]
[403194444,1769263843849,-151.0,0.00014432,2]
[403194445,1769263843859,-151.0,0.00014432,2]
[403194446,1769263843868,-151.0,0.00014432,2]
[403194447,1769263843877,-250.0,0.00014432,2]
[403194448,1769263843886,-250.0,0.00014432,2]
[403194449,1769263843895,-250.0,0.00014432,2]
[403194450,1769263843904,-250.0,0.00014432,2]
[403194451,1769263843913,-250.0,0.00014432,2]
[403194452,1769263843923,-250.0,0.00014432,2]
[403194453,1769263843935,-250.0,0.00014432,2]
[403194454,1769263843945,-250.0,0.00014432,2]
[403194457,1769263843954,-500.0,0.00014432,2]
[403194459,1769263843964,-250.0,0.00014432,2]
[403194461,1769263843974,-500.0,0.00014432,2]
[403194463,1769263843984,-250.0,0.00014432,2]
[403194465,1769263843993,-500.0,0.00014432,2]
[403194467,1769263844002,-250.0,0.00014432,2]
[403194469,1769263844014,-500.0,0.00014432,2]
[403194470,1769263844023,-500.0,0.00014432,2]
[403194471,1769263844034,-500.0,0.00014432,2]
[403194472,1769263844044,-500.0,0.00014432,2]
[403194473,1769263844054,-500.0,0.00014432,2]
[403194474,1769263844063,-500.0,0.00014432,2]
[403194475,1769263844074,-500.0,0.00014432,2]
[403194476,1769263844084,-500.0,0.00014432,2]
[403194477,1769263844093,-778.0,0.00014465,2]
[403194478,1769263844103,-9000.0,0.00014487,2]
[403194479,1769263844115,-9905.5980765,0.00014487,2]
[403194480,1769263844126,-778.0,0.0001452,2]
[403194481,1769263844136,-9000.0,0.00014542,2]
[403194482,1769263844145,-10272.10520533,0.00014542,2]
[403194483,1769263844155,-778.0,0.00014575,2]
[403194484,1769263844164,-9712.15874444,0.00014583,2]
[403194485,1769263844174,-9000.0,0.00014597,2]
[403194486,1769263844183,-10652.17309792,0.00014597,2]
[403194487,1769263844193,-6255.26212639,0.0001462,2]
[403194488,1769263844204,-778.0,0.00014629,2]
[403194489,1769263844214,-151.0,0.00014649,2]
[403194490,1769263844225,-9000.0,0.00014652,2]
[403194491,1769263844235,-9211.34798986,0.00014652,2]
[403194492,1769263844245,-152.0,0.00014678,3]
[403194493,1769263844254,-794.99013325,0.00014684,2]
[403194494,1769263844264,-1012.28,0.00014703,2]
[403194495,1769263844274,-587.0,0.00014734,2]
[403194496,1769263844283,-1600.0,0.0001476,2]
[403194497,1769263844292,-2351.0,0.00014769,2]
[403194498,1769263844302,-1012.28,0.00014977,2]
[403194499,1769263844311,-181.08010149,0.0001498,2]
[403194500,1769263844324,-885.86649465,0.0001498,2]
[403194501,1769263844334,-152.0,0.00015041,4]
[403194502,1769263844343,-326.49485469,0.00015054,2]
[403194503,1769263844352,-419.29,0.00015068,2]
[403194504,1769263844362,-9712.15874444,0.00015136,2]
[403194505,1769263844372,-6255.26212639,0.00015167,2]
[403194506,1769263844382,-250.0,0.00015167,2]
[403194507,1769263844391,-250.0,0.00015167,2]
[403194508,1769263844400,-250.0,0.00015167,2]
[403194509,1769263844409,-250.0,0.00015167,2]
[403194510,1769263844419,-250.0,0.00015167,2]
[403194511,1769263844428,-250.0,0.00015167,2]
[403194512,1769263844438,-250.0,0.00015167,2]
[403194513,1769263844447,-250.0,0.00015167,2]
[403194514,1769263844457,-250.0,0.00015167,2]
[403194515,1769263844467,-250.0,0.00015167,2]
[403194516,1769263844476,-250.0,0.00015167,2]
[403194517,1769263844486,-274.311997,0.00015167,2]
[403194518,1769263844496,-1012.28,0.00015251,2]
[403194519,1769263844505,-186.55,0.00015278,2]
[403194520,1769263844515,-151.0,0.00015294,2]
[403194521,1769263844525,-151.0,0.00015296,2]
[403194522,1769263844535,-152.0,0.00015404,5]
[403194523,1769263844546,-560.21,0.00015523,2]
[403194524,1769263844557,-1012.28,0.00015525,2]
[403194525,1769263844569,-187.78006525,0.00015528,2]
[403194526,1769263844580,-918.64355495,0.00015528,2]
[403194527,1769263844590,-398.32,0.00015656,2]
[403194528,1769263844601,-9712.15874444,0.00015689,2]
[403194529,1769263844610,-6255.26212639,0.00015713,2]
[403194530,1769263844620,-500.0,0.00015733,2]
[403194531,1769263844630,-500.0,0.00015733,2]
[403194532,1769263844640,-180278.88,0.00015734,2]
[403194533,1769263844649,-152.0,0.00015768,6]
[403194534,1769263844659,-560.21,0.00015797,2]
[403194535,1769263844669,-1012.28,0.00015799,2]
[403194536,1769263844679,-334.5472959,0.00015801,2]
[403194537,1769263844688,-867.75,0.00015807,2]
[403194538,1769263844698,-500.0,0.00015873,2]
[403194539,1769263844707,-500.0,0.00015873,2]
[403194540,1769263844716,-500.0,0.00015873,2]
[403194541,1769263844726,-500.0,0.00015873,2]
[403194542,1769263844735,-502.78879497,0.00015873,2]
[403194543,1769263844744,-500.0,0.00015873,2]
[403194544,1769263844754,-500.0,0.00015873,2]
[403194545,1769263844764,-500.0,0.00015873,2]
[403194546,1769263844774,-500.0,0.00015873,2]
[403194547,1769263844783,-500.0,0.00015873,2]
[403194548,1769263844792,-500.0,0.00015873,2]
[403194549,1769263844805,-500.0,0.00015873,2]
[403194550,1769263844815,-500.0,0.00015873,2]
[403194551,1769263844823,-500.0,0.00015873,2]
[403194552,1769263844833,-500.0,0.00015873,2]
[403194553,1769263844842,-500.0,0.00015873,2]
[403194554,1769263844851,-500.0,0.00015873,2]
[403194555,1769263844861,-500.0,0.00015873,2]
[403194556,1769263844870,-503.96785498,0.00015873,2]
[403194557,1769263844879,-500.0,0.00015873,2]
[403194558,1769263844889,-500.0,0.00015873,2]
[403194559,1769263844898,-500.0,0.00015873,2]
[403194560,1769263844907,-500.0,0.00015873,2]
[403194561,1769263844917,-500.0,0.00015873,2]
[403194562,1769263844927,-500.0,0.00015873,2]
[403194563,1769263844940,-500.0,0.00015873,2]
[403194564,1769263844949,-500.0,0.00015873,2]
[403194565,1769263844959,-500.0,0.00015873,2]
[403194566,1769263844968,-344.27510642,0.00015873,2]
[403194567,1769263844978,-1489.45400949,0.00015881,2]
[403194568,1769263844987,-500.0,0.00015918,2]
[403194569,1769263844996,-1000.0,0.00015942,2]
[403194570,1769263845006,-5578.0,0.00015945,2]
[403194571,1769263845015,-1000.0,0.00015961,2]
[403194572,1769263845025,-1000.0,0.0001597,2]
[403194573,1769263845034,-326.49485469,0.00016002,2]
[403194574,1769263845044,-560.21,0.00016071,2]
[403194575,1769263845054,-1012.28,0.00016073,2]
[403194576,1769263845065,-194.72792766,0.00016076,2]
[403194577,1769263845076,-1000.0,0.0001608,2]
[403194578,1769263845086,-867.75,0.00016081,2]
[403194579,1769263845098,-250.0,0.00016082,2]
[403194580,1769263845107,-152.0,0.00016131,7]
[403194581,1769263845117,-1000.0,0.00016152,2]
[403194582,1769263845126,-159.59843399,0.00016153,2]
[403194583,1769263845135,-286.14,0.0001616,2]
[403194584,1769263845145,-823.0,0.00016171,2]
[403194585,1769263845154,-1000.0,0.0001622,2]
[403194586,1769263845164,-1600.0,0.00016237,2]
[403194587,1769263845174,-9712.15874444,0.00016242,2]
[403194588,1769263845183,-3292.0,0.00016246,2]
[403194589,1769263845193,-6255.26212639,0.0001626,2]
[403194590,1769263845203,-1000.0,0.00016289,2]
[403194591,1769263845213,-4840.1444,0.00016338,2]
[403194592,1769263845222,-560.21,0.00016345,2]
[403194593,1769263845231,-1012.28,0.00016347,2]
[403194594,1769263845241,-867.75,0.00016355,2]
[403194595,1769263845251,-500.0,0.00016356,2]
[403194596,1769263845260,-500.0,0.00016356,2]
[403194597,1769263845270,-1000.0,0.00016356,2]
[403194598,1769263845279,-350.97,0.00016371,2]
[403194599,1769263845289,-1000.0,0.00016421,2]
[403194600,1769263845300,-1000.0,0.00016421,2]
[403194601,1769263845310,-1000.0,0.00016421,2]
[403194602,1769263845319,-970.5232733,0.00016421,2]
[403194603,1769263845328,-1000.0,0.00016421,2]
[403194604,1769263845338,-1000.0,0.00016421,2]
[403194605,1769263845347,-1000.0,0.00016421,2]
[403194606,1769263845356,-1000.0,0.00016421,2]
[403194607,1769263845365,-1000.0,0.00016421,2]
[403194608,1769263845375,-176.74718944,0.00016421,2]
[403194609,1769263845384,-963.7080185,0.00016421,2]
[403194610,1769263845393,-1000.0,0.00016421,2]
[403194611,1769263845402,-1000.0,0.00016421,2]
[403194612,1769263845412,-155.01998311,0.00016421,2]
[403194613,1769263845421,-1000.0,0.00016421,2]
[403194614,1769263845430,-1000.0,0.00016421,2]
[403194615,1769263845440,-1000.0,0.00016421,2]
[403194616,1769263845449,-1000.0,0.00016421,2]
[403194617,1769263845458,-341.02773026,0.00016421,2]
[403194618,1769263845467,-1000.0,0.00016421,2]
[403194619,1769263845477,-1000.0,0.00016421,2]
[403194620,1769263845487,-1000.0,0.00016421,2]
[403194621,1769263845496,-1000.0,0.00016421,2]
[403194622,1769263845506,-1000.0,0.00016421,2]
[403194623,1769263845515,-1000.0,0.00016421,2]
[403194624,1769263845524,-1000.0,0.00016421,2]
[403194625,1769263845534,-150.0,0.00016421,2]
[403194626,1769263845543,-500.0,0.00016438,2]
[403194627,1769263845555,-500.0,0.00016438,2]
[403194628,1769263845565,-500.0,0.00016438,2]
[403194629,1769263845575,-500.0,0.00016438,2]
[403194630,1769263845585,-500.0,0.00016438,2]
[403194631,1769263845595,-500.0,0.00016438,2]
[403194632,1769263845604,-500.0,0.00016438,2]
[403194633,1769263845614,-500.0,0.00016438,2]
[403194634,1769263845623,-500.0,0.00016438,2]
[403194635,1769263845633,-500.0,0.00016438,2]
[403194636,1769263845642,-447.49060964,0.00016438,2]
[403194637,1769263845652,-3222.13393013,0.00016438,2]
[403194638,1769263845662,-3149.27560019,0.00016438,2]
[403194639,1769263845671,-375.37,0.00016438,2]
[403194640,1769263845681,-375.37,0.00016438,2]
[403194641,1769263845691,-375.37,0.00016438,2]
[403194642,1769263845700,-375.37,0.00016438,2]
[403194643,1769263845710,-375.37,0.00016438,2]
[403194644,1769263845719,-375.37,0.00016438,2]
[403194645,1769263845964,-375.37,0.00016438,2]
[403194646,1769263845975,-375.37,0.00016438,2]
[403194647,1769263845984,-375.37,0.00016438,2]
[403194648,1769263845993,-375.37,0.00016438,2]
[403194649,1769263846003,-375.37,0.00016438,2]
[403194650,1769263846014,-375.37,0.00016438,2]
[403194651,1769263846023,-375.37,0.00016438,2]
[403194652,1769263846033,-375.37,0.00016438,2]
[403194653,1769263846044,-375.37,0.00016438,2]
[403194654,1769263846054,-375.37,0.00016438,2]
[403194655,1769263846064,-375.37,0.00016438,2]
[403194656,1769263846073,-375.37,0.00016438,2]
[403194657,1769263846083,-375.37,0.00016438,2]
[403194658,1769263846092,-375.37,0.00016438,2]
[403194659,1769263846102,-375.37,0.00016438,2]
[403194660,1769263846111,-375.37,0.00016438,2]
[403194661,1769263846124,-375.37,0.00016438,2]
[403194662,1769263846134,-375.4227433,0.00016438,2]
[403194663,1769263846144,-500.0,0.00016438,2]
[403194664,1769263846154,-500.0,0.00016438,2]
[403194665,1769263846165,-500.0,0.00016438,2]
[403194666,1769263846175,-500.0,0.00016438,2]
[403194667,1769263846185,-500.0,0.00016438,2]
[403194668,1769263846194,-500.0,0.00016438,2]
[403194669,1769263846204,-500.0,0.00016438,2]
[403194670,1769263846214,-500.0,0.00016438,2]
[403194671,1769263846223,-500.0,0.00016438,2]
[403194672,1769263846233,-500.0,0.00016438,2]
[403194673,1769263846243,-500.0,0.00016438,2]
[403194674,1769263846253,-500.0,0.00016438,2]
[403194675,1769263846264,-500.0,0.00016438,2]
[403194676,1769263846274,-500.0,0.00016438,2]
[403194677,1769263846284,-500.0,0.00016438,2]
[403194678,1769263846294,-162.02547009,0.00016438,2]
[403194679,1769263846304,-500.0,0.00016438,2]
[403194680,1769263846314,-500.0,0.00016438,2]
[403194681,1769263846324,-500.0,0.00016438,2]
[403194682,1769263846334,-500.0,0.00016438,2]
[403194683,1769263846344,-500.0,0.00016438,2]
[403194684,1769263846354,-513.68541825,0.00016438,2]
[403194685,1769263846364,-300.0,0.00016438,2]
[403194686,1769263846374,-300.0,0.00016438,2]
[403194687,1769263846385,-300.0,0.00016438,2]
[403194688,1769263846395,-300.0,0.00016438,2]
[403194689,1769263846404,-300.0,0.00016438,2]
[403194690,1769263846414,-300.0,0.00016438,2]
[403194691,1769263846425,-300.0,0.00016438,2]
[403194692,1769263846435,-300.0,0.00016438,2]
[403194693,1769263846444,-300.0,0.00016438,2]
[403194694,1769263846455,-380.48629979,0.00016438,2]
[403194695,1769263846465,-957.33,0.00016438,2]
[403194696,1769263846475,-957.33,0.00016438,2]
[403194697,1769263846485,-957.33,0.00016438,2]
[403194698,1769263846495,-957.33,0.00016438,2]
[403194699,1769263846505,-957.33,0.00016438,2]
[403194700,1769263846515,-957.33,0.00016438,2]
[403194701,1769263846526,-957.33,0.00016438,2]
[403194702,1769263846536,-957.33,0.00016438,2]
[403194703,1769263846546,-957.33,0.00016438,2]
[403194704,1769263846556,-957.33,0.00016438,2]
[403194705,1769263846565,-957.33,0.00016438,2]
[403194706,1769263846575,-957.33,0.00016438,2]
[403194707,1769263846585,-957.33,0.00016438,2]
[403194708,1769263846595,-957.33,0.00016438,2]
[403194709,1769263846604,-957.33,0.00016438,2]
[403194710,1769263846613,-957.33,0.00016438,2]
[403194711,1769263846622,-957.33,0.00016438,2]
[403194712,1769263846632,-957.33,0.00016438,2]
[403194713,1769263846642,-957.33,0.00016438,2]
[403194714,1769263846651,-957.33,0.00016438,2]
[403194715,1769263846661,-957.33,0.00016438,2]
[403194716,1769263846671,-957.33,0.00016438,2]
[403194717,1769263846680,-957.33,0.00016438,2]
[403194718,1769263846691,-957.4341589,0.00016438,2]
[403194719,1769263846700,-800.0,0.00016438,2]
[403194720,1769263846710,-419.29,0.00016438,2]
[403194721,1769263846720,-1000.0,0.00016438,2]
[403194722,1769263846730,-151.0,0.00016438,2]
[403194723,1769263846739,-165.28,0.0001644,2]
[403194724,1769263846749,-152.0,0.00016494,8]
[403194725,1769263846759,-171.79115132,0.00016541,2]
[403194726,1769263846768,-151.0,0.00016541,2]
[403194727,1769263846777,-200.0,0.00016579,2]
[403194728,1769263846787,-1000.0,0.00016611,2]
[403194729,1769263846797,-1000.0,0.00016612,2]
[403194730,1769263846807,-560.21,0.00016619,2]
[403194731,1769263846816,-1012.34780531,0.00016621,2]
[403194732,1769263846826,-201.93286099,0.00016624,2]
[403194733,1769263846835,-867.75,0.00016629,2]
[403194734,1769263846844,-1000.0,0.00016692,2]
[403194735,1769263846854,-1000.0,0.0001671,2]
[403194736,1769263846864,-165.7,0.00016712,2]
[403194737,1769263846877,-1000.0,0.00016712,2]
[403194738,1769263846888,-857.0,0.0001672,2]
[403194739,1769263846898,-398.32,0.00016738,2]
[403194740,1769263846907,-1000.0,0.0001677,2]
[403194741,1769263846917,-200.0,0.00016792,2]
[403194742,1769263846927,-9712.15874444,0.00016794,2]
[403194743,1769263846940,-1000.0,0.00016802,2]
[403194744,1769263846950,-6255.26212639,0.00016807,2]
[403194745,1769263846960,-152.0,0.00016857,9]
[403194746,1769263846969,-500.0,0.00016858,2]
[403194747,1769263846979,-500.0,0.00016858,2]
[403194748,1769263846988,-3552.7,0.00016858,2]
[403194749,1769263846998,-2008.38128925,0.00016861,2]
[403194750,1769263847007,-560.21,0.00016893,2]
[403194751,1769263847017,-867.75,0.00016903,2]
[403194752,1769263847027,-326.49485469,0.00016951,2]
[403194753,1769263847037,-500.0,0.00016959,2]
[403194754,1769263847048,-3552.7,0.00016962,2]
[403194755,1769263847058,-1002.45143879,0.00016968,2]
[403194756,1769263847067,-1500.0,0.00016968,2]
[403194757,1769263847077,-1508.65885814,0.00016968,2]
[403194758,1769263847087,-1500.0,0.00016968,2]
[403194759,1769263847096,-1500.0,0.00016968,2]
[403194760,1769263847106,-1500.0,0.00016968,2]
[403194761,1769263847116,-1500.0,0.00016968,2]
[403194762,1769263847126,-1500.0,0.00016968,2]
[403194763,1769263847136,-1500.0,0.00016968,2]
[403194764,1769263847146,-1500.0,0.00016968,2]
[403194765,1769263847156,-1500.0,0.00016968,2]
[403194766,1769263847166,-420.10334993,0.00016968,2]
[403194767,1769263847176,-409.91910471,0.00016968,2]
[403194768,1769263847186,-507.95507628,0.00016968,2]
[403194769,1769263847196,-1519.79945563,0.00016968,2]
[403194770,1769263847205,-1500.0,0.00016968,2]
[403194771,1769263847215,-1500.0,0.00016968,2]
[403194772,1769263847224,-1500.0,0.00016968,2]
[403194773,1769263847234,-1500.0,0.00016968,2]
[403194774,1769263847244,-613.07928255,0.00016968,2]
[403194775,1769263847254,-1007.7084502,0.00016968,2]
[403194776,1769263847264,-1000.0,0.00016986,2]
[403194777,1769263847274,-250.0,0.00017,2]
[403194778,1769263847283,-3207.48934641,0.00017,2]
[403194779,1769263847293,-1733.4895823,0.00017028,2]
[403194780,1769263847303,-836.0,0.0001704,2]
[403194781,1769263847313,-286.14,0.00017043,2]
[403194782,1769263847323,-4236.06670475,0.00017048,2]
[403194783,1769263847332,-159.59843399,0.00017051,2]
[403194784,1769263847343,-1000.0,0.00017058,2]
[403194785,1769263847352,-393.45440139,0.00017061,2]
[403194786,1769263847362,-3552.7,0.00017066,2]
[403194787,1769263847372,-2000.0,0.000171,2]
[403194788,1769263847382,-1837.9390393,0.000171,2]
[403194789,1769263847392,-350.97,0.00017135,2]
[403194790,1769263847401,-560.21,0.00017167,2]
[403194791,1769263847411,-3552.7,0.00017169,2]
[403194792,1769263847432,-346.92554585,0.0001717,2]
[403194793,1769263847441,-233.89856902,0.00017171,2]
[403194794,1769263847451,-599.60298507,0.00017171,2]
[403194795,1769263847461,-209.40437684,0.00017172,2]
[403194796,1769263847471,-867.75,0.00017177,2]
[403194797,1769263847481,-152.0,0.00017221,10]
[403194798,1769263847490,-200.0,0.00017224,2]
[403194799,1769263847500,-165.97106181,0.0001726,2]
[403194800,1769263847509,-500.0,0.0001726,2]
[403194801,1769263847519,-500.0,0.0001726,2]
[403194802,1769263847528,-617.0,0.0001726,2]
[403194803,1769263847538,-200.0,0.0001726,2]
[403194804,1769263847548,-200.0,0.0001726,2]
[403194805,1769263847558,-200.0,0.0001726,2]
[403194806,1769263847567,-200.0,0.0001726,2]
[403194807,1769263847577,-200.0,0.0001726,2]
[403194808,1769263847586,-200.0,0.0001726,2]
[403194809,1769263847596,-200.0,0.0001726,2]
[403194810,1769263847605,-200.0,0.0001726,2]
[403194811,1769263847615,-200.0,0.0001726,2]
[403194812,1769263847624,-200.0,0.0001726,2]
[403194813,1769263847633,-200.0,0.0001726,2]
[403194814,1769263847643,-200.0,0.0001726,2]
[403194815,1769263847652,-200.0,0.0001726,2]
[403194816,1769263847662,-200.0,0.0001726,2]
[403194817,1769263847671,-200.0,0.0001726,2]
[403194818,1769263847681,-200.0,0.0001726,2]
[403194819,1769263847690,-200.0,0.0001726,2]
[403194820,1769263847699,-200.0,0.0001726,2]
[403194821,1769263847708,-200.0,0.0001726,2]
[403194822,1769263847718,-200.0,0.0001726,2]
[403194823,1769263847727,-200.0,0.0001726,2]
[403194824,1769263847736,-200.0,0.0001726,2]
[403194825,1769263847750,-200.0,0.0001726,2]
[403194826,1769263847760,-200.0,0.0001726,2]
[403194827,1769263847769,-200.0,0.0001726,2]
[403194828,1769263847781,-200.0,0.0001726,2]
[403194829,1769263847790,-200.0,0.0001726,2]
[403194830,1769263847800,-200.0,0.0001726,2]
[403194831,1769263847809,-200.0,0.0001726,2]